[Event "Titled Tuesday Blitz July 18 Late 2023"]
[White "Horcajuelo Rocamora, Martin"]
[Black "Prydun, Andriy"]
[WhiteFideId "24573027"]
[BlackFideId "14145898"]
[WhiteElo "2456"]
[BlackElo "2341"]
[Result "1-0"]
[Round "6"]
[TimeControl "180+2"]
[Date "2023.07.18"]
[WhiteClock "0:00:21"]
[BlackClock "0:00:00"]
[Board "118"]

1. e3 {[%clk 0:02:53]}  g6 {[%clk 0:02:58]} 2. d4 {[%clk 0:02:52]}  Bg7 {[%clk 0:02:59]} 3. Nf3 {[%clk 0:02:53]}  Nf6 {[%clk 0:02:57]} 4. Bd3 {[%clk 0:02:53]}  O-O {[%clk 0:02:58]} 5. O-O {[%clk 0:02:53]}  d6 {[%clk 0:02:55]} 6. b3 {[%clk 0:02:52]}  b6 {[%clk 0:02:54]} 7. Nbd2 {[%clk 0:02:51]}  Bb7 {[%clk 0:02:54]} 8. Bb2 {[%clk 0:02:49]}  Nbd7 {[%clk 0:02:55]} 9. Qe2 {[%clk 0:02:48]}  a5 {[%clk 0:02:43]} 10. c4 {[%clk 0:02:39]}  Re8 {[%clk 0:01:58]} 11. Rfd1 {[%clk 0:02:34]}  e5 {[%clk 0:01:44]} 12. dxe5 {[%clk 0:02:23]}  dxe5 {[%clk 0:01:45]} 13. Bc2 {[%clk 0:02:20]}  Qe7 {[%clk 0:01:43]} 14. Rab1 {[%clk 0:02:18]}  a4 {[%clk 0:01:38]} 15. e4 {[%clk 0:02:10]}  axb3 {[%clk 0:01:34]} 16. axb3 {[%clk 0:02:09]}  Ra2 {[%clk 0:01:33]} 17. Bd3 {[%clk 0:01:45]}  Nh5 {[%clk 0:01:15]} 18. g3 {[%clk 0:01:41]}  Nc5 {[%clk 0:01:13]} 19. Qe3 {[%clk 0:01:13]}  Qf8 {[%clk 0:00:46]} 20. g4 {[%clk 0:01:05]}  Bh6 {[%clk 0:00:45]} 21. g5 {[%clk 0:01:04]}  Bg7 {[%clk 0:00:45]} 22. Bf1 {[%clk 0:01:01]}  h6 {[%clk 0:00:43]} 23. h4 {[%clk 0:00:56]}  Nf4 {[%clk 0:00:41]} 24. b4 {[%clk 0:00:44]}  Na4 {[%clk 0:00:37]} 25. Qb3 {[%clk 0:00:38]}  Rxb2 {[%clk 0:00:37]} 26. Rxb2 {[%clk 0:00:39]}  Nxb2 {[%clk 0:00:37]} 27. Qxb2 {[%clk 0:00:40]}  hxg5 {[%clk 0:00:37]} 28. hxg5 {[%clk 0:00:39]}  Rd8 {[%clk 0:00:35]} 29. Ra1 {[%clk 0:00:37]}  Qe8 {[%clk 0:00:34]} 30. Ra7 {[%clk 0:00:30]}  Rb8 {[%clk 0:00:29]} 31. Qc3 {[%clk 0:00:27]}  Qe6 {[%clk 0:00:29]} 32. Nh2 {[%clk 0:00:22]}  Bf8 {[%clk 0:00:23]} 33. f3 {[%clk 0:00:21]}  Qd6 {[%clk 0:00:17]} 34. Ng4 {[%clk 0:00:20]}  Qxb4 {[%clk 0:00:16]} 35. Qxb4 {[%clk 0:00:18]}  Bxb4 {[%clk 0:00:17]} 36. Nb3 {[%clk 0:00:18]}  Ne6 {[%clk 0:00:15]} 37. Nxe5 {[%clk 0:00:18]}  Nxg5 {[%clk 0:00:16]} 38. Nd7 {[%clk 0:00:18]}  Rd8 {[%clk 0:00:15]} 39. Nf6+ {[%clk 0:00:18]}  Kg7 {[%clk 0:00:15]} 40. Rxb7 {[%clk 0:00:19]}  Kxf6 {[%clk 0:00:14]} 41. Rxc7 {[%clk 0:00:20]}  Nxf3+ {[%clk 0:00:11]} 42. Kf2 {[%clk 0:00:20]}  Ne5 {[%clk 0:00:11]} 43. Ke3 {[%clk 0:00:19]}  g5 {[%clk 0:00:09]} 44. Be2 {[%clk 0:00:19]}  g4 {[%clk 0:00:10]} 45. Kf4 {[%clk 0:00:18]}  Bd6 {[%clk 0:00:09]} 46. Rb7 {[%clk 0:00:17]}  Rg8 {[%clk 0:00:08]} 47. Rxb6 {[%clk 0:00:15]}  Nxc4+ {[%clk 0:00:07]} 48. Rxd6+ {[%clk 0:00:15]}  Nxd6 {[%clk 0:00:08]} 49. e5+ {[%clk 0:00:16]}  Ke6 {[%clk 0:00:06]} 50. exd6 {[%clk 0:00:16]}  g3 {[%clk 0:00:05]} 51. Nd4+ {[%clk 0:00:16]}  Kd7 {[%clk 0:00:05]} 52. Nf3 {[%clk 0:00:17]}  g2 {[%clk 0:00:04]} 53. Ng1 {[%clk 0:00:17]}  Kxd6 {[%clk 0:00:04]} 54. Kf3 {[%clk 0:00:18]}  Ke5 {[%clk 0:00:04]} 55. Kf2 {[%clk 0:00:19]}  Kf4 {[%clk 0:00:04]} 56. Bf3 {[%clk 0:00:20]}  Rg3 {[%clk 0:00:03]} 57. Ne2+ {[%clk 0:00:19]}  Kg5 {[%clk 0:00:02]} 58. Nxg3 {[%clk 0:00:19]}  Kf4 {[%clk 0:00:01]} 59. Ne2+ {[%clk 0:00:19]}  Kg5 {[%clk 0:00:01]} 60. Kxg2 {[%clk 0:00:20]}  Kf5 {[%clk 0:00:02]} 61. Kg3 {[%clk 0:00:21]}  Kg5 {[%clk 0:00:00]} 62. Nd4 {[%clk 0:00:21]} 1-0


[Site "https://www.chess.com"]

[Event "Titled Tuesday Blitz July 18 Late 2023"]
[White "Fernandez Siles, Luis"]
[Black "WindWhistler11"]
[WhiteFideId "2209420"]
[WhiteElo "2311"]
[BlackElo "2451"]
[Result "0-1"]
[Round "6"]
[TimeControl "180+2"]
[Date "2023.07.18"]
[WhiteClock "0:00:00"]
[BlackClock "0:00:44"]
[Board "120"]

1. e4 {[%clk 0:03:00]}  e6 {[%clk 0:03:00]} 2. d4 {[%clk 0:02:59]}  d5 {[%clk 0:03:00]} 3. Nc3 {[%clk 0:02:57]}  Bb4 {[%clk 0:03:00]} 4. e5 {[%clk 0:02:57]}  Ne7 {[%clk 0:02:58]} 5. Bd2 {[%clk 0:02:55]}  Nbc6 {[%clk 0:02:56]} 6. Nf3 {[%clk 0:02:52]}  Nf5 {[%clk 0:02:55]} 7. a3 {[%clk 0:02:51]}  Ba5 {[%clk 0:02:55]} 8. Na4 {[%clk 0:02:41]}  Bb6 {[%clk 0:02:41]} 9. c3 {[%clk 0:02:37]}  f6 {[%clk 0:02:37]} 10. Bd3 {[%clk 0:02:16]}  fxe5 {[%clk 0:02:30]} 11. dxe5 {[%clk 0:02:09]}  O-O {[%clk 0:02:29]} 12. O-O {[%clk 0:02:07]}  Bd7 {[%clk 0:02:23]} 13. Re1 {[%clk 0:01:45]}  Qe8 {[%clk 0:02:13]} 14. Nxb6 {[%clk 0:01:40]}  axb6 {[%clk 0:02:13]} 15. c4 {[%clk 0:01:38]}  Nce7 {[%clk 0:02:04]} 16. Rc1 {[%clk 0:01:21]}  Bc6 {[%clk 0:02:02]} 17. Bb4 {[%clk 0:01:11]}  Rf7 {[%clk 0:01:27]} 18. Bxe7 {[%clk 0:01:08]}  Qxe7 {[%clk 0:01:25]} 19. Bxf5 {[%clk 0:01:02]}  Rxf5 {[%clk 0:01:24]} 20. Nd4 {[%clk 0:01:01]}  Rg5 {[%clk 0:01:19]} 21. f4 {[%clk 0:00:55]}  Rg6 {[%clk 0:01:19]} 22. f5 {[%clk 0:00:48]}  exf5 {[%clk 0:01:15]} 23. cxd5 {[%clk 0:00:33]}  Bxd5 {[%clk 0:01:11]} 24. Nf3 {[%clk 0:00:23]}  c6 {[%clk 0:01:07]} 25. Qe2 {[%clk 0:00:16]}  Ra4 {[%clk 0:01:01]} 26. Qf2 {[%clk 0:00:15]}  Rf4 {[%clk 0:01:00]} 27. Re3 {[%clk 0:00:15]}  h5 {[%clk 0:00:47]} 28. Rce1 {[%clk 0:00:14]}  Rfg4 {[%clk 0:00:45]} 29. g3 {[%clk 0:00:00]}  h4 {[%clk 0:00:44]} 0-1


[Site "https://www.chess.com"]

[Event "Titled Tuesday Blitz July 18 Late 2023"]
[White "Reprintsev, Alexander"]
[Black "BrandonJiang123456"]
[WhiteFideId "14100541"]
[WhiteElo "2445"]
[BlackElo "2281"]
[Result "1-0"]
[Round "6"]
[TimeControl "180+2"]
[Date "2023.07.18"]
[WhiteClock "0:00:17"]
[BlackClock "0:00:02"]
[Board "121"]

1. e4 {[%clk 0:02:59]}  c5 {[%clk 0:02:36]} 2. b3 {[%clk 0:02:55]}  Nc6 {[%clk 0:02:34]} 3. Bb2 {[%clk 0:02:54]}  e5 {[%clk 0:02:35]} 4. f4 {[%clk 0:02:54]}  exf4 {[%clk 0:02:33]} 5. Qf3 {[%clk 0:02:36]}  Qh4+ {[%clk 0:02:06]} 6. g3 {[%clk 0:02:34]}  fxg3 {[%clk 0:02:05]} 7. hxg3 {[%clk 0:02:35]}  Qe7 {[%clk 0:02:00]} 8. Bc4 {[%clk 0:02:18]}  d6 {[%clk 0:01:54]} 9. Ne2 {[%clk 0:02:09]}  Be6 {[%clk 0:01:44]} 10. Na3 {[%clk 0:01:58]}  a6 {[%clk 0:01:15]} 11. O-O-O {[%clk 0:01:48]}  Nf6 {[%clk 0:01:12]} 12. Bxf6 {[%clk 0:01:01]}  Qxf6 {[%clk 0:01:11]} 13. Qxf6 {[%clk 0:01:01]}  gxf6 {[%clk 0:01:12]} 14. Rdf1 {[%clk 0:01:00]}  Be7 {[%clk 0:01:11]} 15. Nf4 {[%clk 0:00:59]}  Kd7 {[%clk 0:01:03]} 16. Nd5 {[%clk 0:00:57]}  Bxd5 {[%clk 0:00:54]} 17. Bxd5 {[%clk 0:00:57]}  Rab8 {[%clk 0:00:51]} 18. Bxf7 {[%clk 0:00:56]}  Ne5 {[%clk 0:00:49]} 19. Bd5 {[%clk 0:00:55]}  b5 {[%clk 0:00:49]} 20. c3 {[%clk 0:00:54]}  Rbf8 {[%clk 0:00:44]} 21. d4 {[%clk 0:00:53]}  cxd4 {[%clk 0:00:45]} 22. cxd4 {[%clk 0:00:54]}  Nc6 {[%clk 0:00:45]} 23. Nc2 {[%clk 0:00:53]}  Rc8 {[%clk 0:00:42]} 24. Kd2 {[%clk 0:00:51]}  Bd8 {[%clk 0:00:37]} 25. Rh6 {[%clk 0:00:50]}  Ne7 {[%clk 0:00:34]} 26. Ne3 {[%clk 0:00:44]}  Ng6 {[%clk 0:00:20]} 27. Bf7 {[%clk 0:00:37]}  Ba5+ {[%clk 0:00:19]} 28. Ke2 {[%clk 0:00:36]}  Bc3 {[%clk 0:00:16]} 29. d5 {[%clk 0:00:35]}  Bd4 {[%clk 0:00:15]} 30. Be6+ {[%clk 0:00:34]}  Ke7 {[%clk 0:00:15]} 31. Bxc8 {[%clk 0:00:34]}  Rxc8 {[%clk 0:00:16]} 32. Rxh7+ {[%clk 0:00:35]}  Kf8 {[%clk 0:00:16]} 33. Nf5 {[%clk 0:00:31]}  Rc2+ {[%clk 0:00:13]} 34. Kd1 {[%clk 0:00:29]}  Rxa2 {[%clk 0:00:12]} 35. Nxd4 {[%clk 0:00:29]}  Ra1+ {[%clk 0:00:12]} 36. Ke2 {[%clk 0:00:29]}  Ra2+ {[%clk 0:00:13]} 37. Ke3 {[%clk 0:00:28]}  Kg8 {[%clk 0:00:13]} 38. Ra7 {[%clk 0:00:26]}  Ne5 {[%clk 0:00:12]} 39. Ra8+ {[%clk 0:00:22]}  Kf7 {[%clk 0:00:09]} 40. Rf4 {[%clk 0:00:18]}  Ra1 {[%clk 0:00:08]} 41. Ra7+ {[%clk 0:00:17]}  Kg6 {[%clk 0:00:07]} 42. Ne6 {[%clk 0:00:17]}  Re1+ {[%clk 0:00:07]} 43. Kd2 {[%clk 0:00:16]}  Ra1 {[%clk 0:00:02]} 44. Rg7+ {[%clk 0:00:16]}  Kh6 {[%clk 0:00:02]} 45. Rh4# {[%clk 0:00:17]} 1-0


[Site "https://www.chess.com"]

[Event "Titled Tuesday Blitz July 18 Late 2023"]
[White "Schut, Han"]
[Black "Deviprasath, Sharvesh"]
[WhiteFideId "1005561"]
[BlackFideId "30938228"]
[WhiteElo "2281"]
[BlackElo "2443"]
[Result "0-1"]
[Round "6"]
[TimeControl "180+2"]
[Date "2023.07.18"]
[WhiteClock "0:00:18"]
[BlackClock "0:01:02"]
[Board "122"]

1. e4 {[%clk 0:02:50]}  c5 {[%clk 0:03:00]} 2. Nf3 {[%clk 0:02:48]}  Nc6 {[%clk 0:02:59]} 3. d4 {[%clk 0:02:49]}  cxd4 {[%clk 0:02:59]} 4. Nxd4 {[%clk 0:02:49]}  Nf6 {[%clk 0:03:00]} 5. Nc3 {[%clk 0:02:50]}  e5 {[%clk 0:03:01]} 6. Ndb5 {[%clk 0:02:50]}  d6 {[%clk 0:03:00]} 7. Nd5 {[%clk 0:02:50]}  Nxd5 {[%clk 0:02:52]} 8. exd5 {[%clk 0:02:51]}  Nb8 {[%clk 0:02:52]} 9. Qf3 {[%clk 0:02:51]}  a6 {[%clk 0:02:49]} 10. Qa3 {[%clk 0:02:50]}  Be7 {[%clk 0:02:46]} 11. Bg5 {[%clk 0:02:50]}  f6 {[%clk 0:02:36]} 12. Bd2 {[%clk 0:02:50]}  O-O {[%clk 0:02:31]} 13. Bb4 {[%clk 0:02:51]}  axb5 {[%clk 0:02:17]} 14. Qxa8 {[%clk 0:02:52]}  Na6 {[%clk 0:02:17]} 15. Bd2 {[%clk 0:02:50]}  Qb6 {[%clk 0:02:07]} 16. Be3 {[%clk 0:02:51]}  Qa5+ {[%clk 0:02:07]} 17. c3 {[%clk 0:02:51]}  b4 {[%clk 0:01:56]} 18. Bxa6 {[%clk 0:02:39]}  bxc3 {[%clk 0:01:55]} 19. O-O {[%clk 0:02:33]}  cxb2 {[%clk 0:01:54]} 20. Rab1 {[%clk 0:02:30]}  bxa6 {[%clk 0:01:53]} 21. Rxb2 {[%clk 0:02:16]}  f5 {[%clk 0:01:54]} 22. f3 {[%clk 0:01:35]}  Qa3 {[%clk 0:01:49]} 23. Rb3 {[%clk 0:01:31]}  Qxa2 {[%clk 0:01:48]} 24. Rb8 {[%clk 0:01:25]}  Bd7 {[%clk 0:01:31]} 25. Rxf8+ {[%clk 0:01:16]}  Bxf8 {[%clk 0:01:32]} 26. Rc1 {[%clk 0:01:09]}  Qa3 {[%clk 0:01:19]} 27. Bd2 {[%clk 0:00:50]}  Qd3 {[%clk 0:01:04]} 28. Bg5 {[%clk 0:00:32]}  h6 {[%clk 0:01:02]} 29. Be7 {[%clk 0:00:20]}  Qe3+ {[%clk 0:01:01]} 30. Kf1 {[%clk 0:00:21]}  Qxc1+ {[%clk 0:01:02]} 31. Ke2 {[%clk 0:00:18]}  Qc8 {[%clk 0:01:02]} 0-1


[Site "https://www.chess.com"]

[Event "Titled Tuesday Blitz July 18 Late 2023"]
[White "Bartel, Marta"]
[Black "Pein, Jonathan"]
[WhiteFideId "1123009"]
[BlackFideId "417092"]
[WhiteElo "2281"]
[BlackElo "2443"]
[Result "0-1"]
[Round "6"]
[TimeControl "180+2"]
[Date "2023.07.18"]
[WhiteClock "0:00:58"]
[BlackClock "0:01:13"]
[Board "123"]

1. d4 {[%clk 0:02:36]}  d6 {[%clk 0:02:57]} 2. Nf3 {[%clk 0:02:35]}  Nc6 {[%clk 0:02:54]} 3. Bg5 {[%clk 0:02:33]}  Nf6 {[%clk 0:02:52]} 4. e3 {[%clk 0:02:33]}  g6 {[%clk 0:02:49]} 5. Be2 {[%clk 0:02:27]}  Bg7 {[%clk 0:02:50]} 6. O-O {[%clk 0:02:28]}  O-O {[%clk 0:02:50]} 7. c4 {[%clk 0:02:28]}  h6 {[%clk 0:02:43]} 8. Bh4 {[%clk 0:02:27]}  Ne4 {[%clk 0:02:40]} 9. Nfd2 {[%clk 0:02:17]}  Nxd2 {[%clk 0:02:37]} 10. Qxd2 {[%clk 0:02:17]}  Qe8 {[%clk 0:02:36]} 11. Nc3 {[%clk 0:02:17]}  e5 {[%clk 0:02:36]} 12. dxe5 {[%clk 0:02:10]}  Nxe5 {[%clk 0:02:37]} 13. Nd5 {[%clk 0:02:05]}  Qd7 {[%clk 0:02:36]} 14. Nf6+ {[%clk 0:02:02]}  Bxf6 {[%clk 0:02:36]} 15. Bxf6 {[%clk 0:02:03]}  Qe6 {[%clk 0:02:30]} 16. Bh4 {[%clk 0:01:45]}  Nxc4 {[%clk 0:02:29]} 17. Qc3 {[%clk 0:01:41]}  d5 {[%clk 0:02:15]} 18. b3 {[%clk 0:01:40]}  Qe5 {[%clk 0:02:15]} 19. Rac1 {[%clk 0:01:35]}  Qxc3 {[%clk 0:02:03]} 20. Rxc3 {[%clk 0:01:35]}  Nd2 {[%clk 0:01:39]} 21. Rd1 {[%clk 0:01:29]}  Ne4 {[%clk 0:01:37]} 22. Rxc7 {[%clk 0:01:29]}  Be6 {[%clk 0:01:37]} 23. f3 {[%clk 0:01:19]}  Nd6 {[%clk 0:01:30]} 24. Be7 {[%clk 0:01:12]}  Nf5 {[%clk 0:01:13]} 25. Bxf8 {[%clk 0:01:10]}  Rxf8 {[%clk 0:01:12]} 26. Kf2 {[%clk 0:01:06]}  Re8 {[%clk 0:01:13]} 27. Kg1 {[%clk 0:01:02]}  Nxe3 {[%clk 0:01:13]} 28. Kf2 {[%clk 0:00:58]}  Nxd1+ {[%clk 0:01:13]} 0-1


[Site "https://www.chess.com"]

[Event "Titled Tuesday Blitz July 18 Late 2023"]
[White "JonSnowNW1"]
[Black "disciplinedbrat"]
[WhiteElo "2431"]
[BlackElo "2237"]
[Result "0-1"]
[Round "6"]
[TimeControl "180+2"]
[Date "2023.07.18"]
[WhiteClock "0:00:00"]
[BlackClock "0:00:14"]
[Board "126"]

1. c4 {[%clk 0:03:00]}  c6 {[%clk 0:02:58]} 2. e4 {[%clk 0:03:00]}  d6 {[%clk 0:02:58]} 3. Nc3 {[%clk 0:02:59]}  g6 {[%clk 0:02:59]} 4. g3 {[%clk 0:02:59]}  Bg7 {[%clk 0:02:59]} 5. Nge2 {[%clk 0:03:00]}  Nf6 {[%clk 0:02:58]} 6. Bg2 {[%clk 0:03:00]}  O-O {[%clk 0:02:59]} 7. O-O {[%clk 0:02:58]}  e5 {[%clk 0:02:57]} 8. d3 {[%clk 0:02:56]}  Nbd7 {[%clk 0:02:57]} 9. f4 {[%clk 0:02:56]}  Nc5 {[%clk 0:02:57]} 10. h3 {[%clk 0:02:53]}  a5 {[%clk 0:02:44]} 11. Be3 {[%clk 0:02:45]}  Ne6 {[%clk 0:02:30]} 12. f5 {[%clk 0:02:43]}  Nc7 {[%clk 0:02:31]} 13. g4 {[%clk 0:02:41]}  d5 {[%clk 0:02:30]} 14. g5 {[%clk 0:02:37]}  d4 {[%clk 0:02:23]} 15. gxf6 {[%clk 0:02:35]}  Qxf6 {[%clk 0:02:18]} 16. Nxd4 {[%clk 0:01:39]}  exd4 {[%clk 0:02:14]} 17. e5 {[%clk 0:01:39]}  Qxe5 {[%clk 0:02:10]} 18. Bf4 {[%clk 0:01:39]}  Qe7 {[%clk 0:02:06]} 19. Ne4 {[%clk 0:01:14]}  Ne8 {[%clk 0:01:45]} 20. f6 {[%clk 0:00:58]}  Bxf6 {[%clk 0:01:14]} 21. Nxf6+ {[%clk 0:00:50]}  Qxf6 {[%clk 0:01:04]} 22. Bh6 {[%clk 0:00:47]}  Qh4 {[%clk 0:00:57]} 23. Bxf8 {[%clk 0:00:46]}  Kxf8 {[%clk 0:00:57]} 24. Qf3 {[%clk 0:00:46]}  Be6 {[%clk 0:00:55]} 25. Rae1 {[%clk 0:00:45]}  Nd6 {[%clk 0:00:41]} 26. Rxe6 {[%clk 0:00:43]}  Nf5 {[%clk 0:00:41]} 27. Re4 {[%clk 0:00:41]}  Qh6 {[%clk 0:00:39]} 28. Qf4 {[%clk 0:00:35]}  Qg7 {[%clk 0:00:35]} 29. Rfe1 {[%clk 0:00:24]}  h5 {[%clk 0:00:33]} 30. Qe5 {[%clk 0:00:22]}  Qh6 {[%clk 0:00:28]} 31. Qf6 {[%clk 0:00:19]}  Ne3 {[%clk 0:00:20]} 32. Re7 {[%clk 0:00:15]}  Qg7 {[%clk 0:00:20]} 33. Qxg7+ {[%clk 0:00:11]}  Kxg7 {[%clk 0:00:21]} 34. Rxb7 {[%clk 0:00:12]}  Re8 {[%clk 0:00:16]} 35. Re2 {[%clk 0:00:12]}  Re5 {[%clk 0:00:16]} 36. Rf2 {[%clk 0:00:11]}  Nf5 {[%clk 0:00:14]} 37. Be4 {[%clk 0:00:12]}  Kf6 {[%clk 0:00:13]} 38. Bxf5 {[%clk 0:00:11]}  gxf5 {[%clk 0:00:14]} 39. Rc7 {[%clk 0:00:11]}  c5 {[%clk 0:00:14]} 40. Kf1 {[%clk 0:00:10]}  Kg5 {[%clk 0:00:13]} 41. Re2 {[%clk 0:00:09]}  Re3 {[%clk 0:00:12]} 42. Rxe3 {[%clk 0:00:02]}  dxe3 {[%clk 0:00:13]} 43. Ke2 {[%clk 0:00:03]}  f4 {[%clk 0:00:13]} 44. Rxf7 {[%clk 0:00:02]}  h4 {[%clk 0:00:13]} 45. d4 {[%clk 0:00:02]}  cxd4 {[%clk 0:00:12]} 46. c5 {[%clk 0:00:02]}  d3+ {[%clk 0:00:11]} 47. Kxd3 {[%clk 0:00:03]}  Kg6 {[%clk 0:00:12]} 48. Rxf4 {[%clk 0:00:01]}  Kg5 {[%clk 0:00:13]} 49. Re4 {[%clk 0:00:01]}  Kf5 {[%clk 0:00:13]} 50. Rxe3 {[%clk 0:00:00]}  Kf4 {[%clk 0:00:14]} 0-1


[Site "https://www.chess.com"]

[Event "Titled Tuesday Blitz July 18 Late 2023"]
[White "Kovacsy, Barnabas"]
[Black "Novikova, Margarita"]
[WhiteFideId "769290"]
[BlackFideId "14109689"]
[WhiteElo "2429"]
[BlackElo "2205"]
[Result "1-0"]
[Round "6"]
[TimeControl "180+2"]
[Date "2023.07.18"]
[WhiteClock "0:00:02"]
[BlackClock "0:00:00"]
[Board "127"]

1. e4 {[%clk 0:03:00]}  d5 {[%clk 0:02:56]} 2. exd5 {[%clk 0:02:58]}  Qxd5 {[%clk 0:02:57]} 3. Nc3 {[%clk 0:02:58]}  Qd6 {[%clk 0:02:56]} 4. d4 {[%clk 0:02:56]}  Nf6 {[%clk 0:02:56]} 5. Nf3 {[%clk 0:02:54]}  Bg4 {[%clk 0:02:53]} 6. Be2 {[%clk 0:02:54]}  c6 {[%clk 0:02:53]} 7. O-O {[%clk 0:02:52]}  e6 {[%clk 0:02:53]} 8. Be3 {[%clk 0:02:48]}  Nbd7 {[%clk 0:02:53]} 9. h3 {[%clk 0:02:43]}  Bh5 {[%clk 0:02:52]} 10. Qd3 {[%clk 0:02:19]}  Bg6 {[%clk 0:02:51]} 11. Qd2 {[%clk 0:02:18]}  e5 {[%clk 0:02:49]} 12. dxe5 {[%clk 0:02:11]}  Nxe5 {[%clk 0:02:48]} 13. Nxe5 {[%clk 0:02:10]}  Qxe5 {[%clk 0:02:46]} 14. Bf4 {[%clk 0:02:07]}  Qa5 {[%clk 0:02:29]} 15. Rfe1 {[%clk 0:02:02]}  Be7 {[%clk 0:02:21]} 16. Bc4 {[%clk 0:01:43]}  Kf8 {[%clk 0:02:20]} 17. Bd6 {[%clk 0:01:35]}  Bxd6 {[%clk 0:02:01]} 18. Qxd6+ {[%clk 0:01:36]}  Kg8 {[%clk 0:02:01]} 19. Rad1 {[%clk 0:01:08]}  h6 {[%clk 0:01:58]} 20. Re7 {[%clk 0:01:00]}  Qb6 {[%clk 0:01:34]} 21. Qg3 {[%clk 0:00:49]}  Qc5 {[%clk 0:01:23]} 22. Bxf7+ {[%clk 0:00:10]}  Bxf7 {[%clk 0:01:21]} 23. Rxb7 {[%clk 0:00:11]}  Qg5 {[%clk 0:01:12]} 24. Qc7 {[%clk 0:00:10]}  Bd5 {[%clk 0:00:57]} 25. Nxd5 {[%clk 0:00:09]}  cxd5 {[%clk 0:00:49]} 26. Qf7+ {[%clk 0:00:09]}  Kh7 {[%clk 0:00:36]} 27. Rxa7 {[%clk 0:00:09]}  Rxa7 {[%clk 0:00:33]} 28. Qxa7 {[%clk 0:00:10]}  Re8 {[%clk 0:00:32]} 29. Qd4 {[%clk 0:00:09]}  Qg6 {[%clk 0:00:28]} 30. Qd3 {[%clk 0:00:08]}  Re4 {[%clk 0:00:28]} 31. f3 {[%clk 0:00:06]}  Rb4 {[%clk 0:00:23]} 32. Qxg6+ {[%clk 0:00:06]}  Kxg6 {[%clk 0:00:24]} 33. b3 {[%clk 0:00:07]}  Rb7 {[%clk 0:00:20]} 34. Kf2 {[%clk 0:00:07]}  Rc7 {[%clk 0:00:20]} 35. Rd2 {[%clk 0:00:07]}  Rc3 {[%clk 0:00:20]} 36. a4 {[%clk 0:00:07]}  Kf5 {[%clk 0:00:20]} 37. a5 {[%clk 0:00:07]}  Ke6 {[%clk 0:00:17]} 38. Re2+ {[%clk 0:00:04]}  Kd6 {[%clk 0:00:17]} 39. Ke1 {[%clk 0:00:05]}  Nd7 {[%clk 0:00:16]} 40. Kd2 {[%clk 0:00:05]}  Rc8 {[%clk 0:00:14]} 41. b4 {[%clk 0:00:06]}  Ne5 {[%clk 0:00:12]} 42. c3 {[%clk 0:00:04]}  Nc4+ {[%clk 0:00:12]} 43. Kc2 {[%clk 0:00:04]}  Ra8 {[%clk 0:00:11]} 44. Kb3 {[%clk 0:00:05]}  Rb8 {[%clk 0:00:10]} 45. Kc2 {[%clk 0:00:05]}  Ra8 {[%clk 0:00:06]} 46. Kb3 {[%clk 0:00:04]}  Rb8 {[%clk 0:00:03]} 47. Ka4 {[%clk 0:00:05]}  Ra8 {[%clk 0:00:02]} 48. Re1 {[%clk 0:00:04]}  Nb2+ {[%clk 0:00:01]} 49. Kb3 {[%clk 0:00:03]}  Nc4 {[%clk 0:00:02]} 50. f4 {[%clk 0:00:03]}  Kc6 {[%clk 0:00:00]} 51. f5 {[%clk 0:00:02]} 1-0


[Site "https://www.chess.com"]

[Event "Titled Tuesday Blitz July 18 Late 2023"]
[White "ChessSG1"]
[Black "Curtis, John"]
[BlackFideId "3200256"]
[WhiteElo "2270"]
[BlackElo "2060"]
[Result "1-0"]
[Round "6"]
[TimeControl "180+2"]
[Date "2023.07.18"]
[WhiteClock "0:00:16"]
[BlackClock "0:00:11"]
[Board "130"]

1. d4 {[%clk 0:03:00]}  Nf6 {[%clk 0:02:59]} 2. c4 {[%clk 0:03:00]}  e6 {[%clk 0:02:58]} 3. g3 {[%clk 0:03:01]}  d5 {[%clk 0:02:58]} 4. Nf3 {[%clk 0:03:00]}  a6 {[%clk 0:02:54]} 5. Bg2 {[%clk 0:03:00]}  dxc4 {[%clk 0:02:54]} 6. O-O {[%clk 0:03:01]}  b5 {[%clk 0:02:54]} 7. Ne5 {[%clk 0:02:54]}  Nd5 {[%clk 0:02:54]} 8. a4 {[%clk 0:02:44]}  c6 {[%clk 0:02:50]} 9. e4 {[%clk 0:02:35]}  Nb4 {[%clk 0:02:47]} 10. axb5 {[%clk 0:02:22]}  cxb5 {[%clk 0:02:46]} 11. d5 {[%clk 0:02:22]}  exd5 {[%clk 0:02:42]} 12. exd5 {[%clk 0:02:19]}  Bd6 {[%clk 0:02:42]} 13. Nc6 {[%clk 0:01:50]}  N8xc6 {[%clk 0:02:42]} 14. dxc6 {[%clk 0:01:51]}  Ra7 {[%clk 0:02:42]} 15. Re1+ {[%clk 0:01:44]}  Re7 {[%clk 0:02:42]} 16. Nc3 {[%clk 0:01:40]}  O-O {[%clk 0:02:40]} 17. Rxe7 {[%clk 0:01:40]}  Qxe7 {[%clk 0:02:35]} 18. Be3 {[%clk 0:01:38]}  Be5 {[%clk 0:02:18]} 19. Ne4 {[%clk 0:01:30]}  Rd8 {[%clk 0:02:05]} 20. Qe2 {[%clk 0:01:27]}  Nxc6 {[%clk 0:02:01]} 21. Bc5 {[%clk 0:01:21]}  Qc7 {[%clk 0:01:55]} 22. Ng5 {[%clk 0:01:13]}  Bf6 {[%clk 0:01:27]} 23. Re1 {[%clk 0:00:46]}  Bd7 {[%clk 0:00:57]} 24. Ne4 {[%clk 0:00:28]}  Be5 {[%clk 0:00:46]} 25. Qe3 {[%clk 0:00:21]}  h6 {[%clk 0:00:43]} 26. Bb6 {[%clk 0:00:21]}  Qc8 {[%clk 0:00:39]} 27. Bxd8 {[%clk 0:00:21]}  Qxd8 {[%clk 0:00:39]} 28. Nc5 {[%clk 0:00:22]}  Bd4 {[%clk 0:00:37]} 29. Qd2 {[%clk 0:00:16]}  Bxc5 {[%clk 0:00:35]} 30. Bxc6 {[%clk 0:00:16]}  Qf8 {[%clk 0:00:27]} 31. Bxd7 {[%clk 0:00:15]}  Qe7 {[%clk 0:00:28]} 32. Rxe7 {[%clk 0:00:15]}  Bxe7 {[%clk 0:00:28]} 33. Bg4 {[%clk 0:00:14]}  g6 {[%clk 0:00:26]} 34. Qd7 {[%clk 0:00:14]}  Bf6 {[%clk 0:00:25]} 35. Qc6 {[%clk 0:00:14]}  Bxb2 {[%clk 0:00:24]} 36. Qxa6 {[%clk 0:00:14]}  c3 {[%clk 0:00:24]} 37. Bd1 {[%clk 0:00:15]}  b4 {[%clk 0:00:23]} 38. Qc4 {[%clk 0:00:15]}  Ba3 {[%clk 0:00:23]} 39. Bb3 {[%clk 0:00:16]}  Kh8 {[%clk 0:00:11]} 40. Qxf7 {[%clk 0:00:16]} 1-0


[Site "https://www.chess.com"]